fUSD/lending_fUSD_20260617
["ID","MTS","AMOUNT","RATE_DAILY","PERIOD"]
[425348810,1781710231000,-500.0,0.00016701,2]
[425348813,1781710231000,-500.0,0.00016701,2]
[425348808,1781710231000,-500.0,0.00016701,2]
[425348805,1781710231000,-500.0,0.00016701,2]
[425348815,1781710231000,-500.0,0.00016701,2]
[425348796,1781710231000,-175.46537405,0.00016701,2]
[425348807,1781710231000,-500.0,0.00016701,2]
[425348806,1781710231000,-500.0,0.00016701,2]
[425348802,1781710231000,-500.0,0.00016701,2]
[425348804,1781710231000,-500.0,0.00016701,2]
[425348799,1781710231000,-229.99000854,0.00016701,2]
[425348801,1781710231000,-500.0,0.00016701,2]
[425348800,1781710231000,-500.0,0.00016701,2]
[425348812,1781710231000,-500.0,0.00016701,2]
[425348816,1781710231000,-500.0,0.00016701,2]
[425348849,1781710232000,-168.33866016,0.00016701,2]
[425348845,1781710232000,-500.0,0.00016701,2]
[425348844,1781710232000,-500.0,0.00016701,2]
[425348843,1781710232000,-500.0,0.00016701,2]
[425348840,1781710232000,-500.0,0.00016701,2]
[425348846,1781710232000,-331.66133984,0.00016701,2]
[425348850,1781710232000,-500.0,0.00016701,2]
[425348842,1781710232000,-500.0,0.00016701,2]
[425348851,1781710232000,-500.0,0.00016701,2]
[425348863,1781710232000,-541.97665801,0.00016701,2]
[425348853,1781710232000,-500.0,0.00016701,2]
[425348860,1781710232000,-500.0,0.00016701,2]
[425348864,1781710232000,-541.97665801,0.00016701,2]
[425348859,1781710232000,-500.0,0.00016701,2]
[425348865,1781710232000,-541.97665801,0.00016701,2]
[425348856,1781710232000,-500.0,0.00016701,2]
[425348862,1781710232000,-500.0,0.00016701,2]
[425348841,1781710232000,-500.0,0.00016701,2]
[425348857,1781710232000,-541.51707837,0.00016701,2]
[425348852,1781710232000,-500.0,0.00016701,2]
[425348839,1781710232000,-500.0,0.00016701,2]
[425348830,1781710232000,-500.0,0.00016701,2]
[425348835,1781710232000,-500.0,0.00016701,2]
[425348818,1781710232000,-500.0,0.00016701,2]
[425348820,1781710232000,-500.0,0.00016701,2]
[425348825,1781710232000,-500.0,0.00016701,2]
[425348827,1781710232000,-500.0,0.00016701,2]
[425348826,1781710232000,-500.0,0.00016701,2]
[425348824,1781710232000,-500.0,0.00016701,2]
[425348821,1781710232000,-500.0,0.00016701,2]
[425348819,1781710232000,-500.0,0.00016701,2]
[425348822,1781710232000,-500.0,0.00016701,2]
[425348836,1781710232000,-500.0,0.00016701,2]
[425348823,1781710232000,-500.0,0.00016701,2]
[425348829,1781710232000,-500.0,0.00016701,2]
[425348828,1781710232000,-500.0,0.00016701,2]
[425348858,1781710232000,-500.0,0.00016701,2]
[425348831,1781710232000,-500.0,0.00016701,2]
[425348832,1781710232000,-459.74395818,0.00016701,2]
[425348838,1781710232000,-500.0,0.00016701,2]
[425348837,1781710232000,-500.0,0.00016701,2]
[425348833,1781710232000,-500.0,0.00016701,2]
[425348834,1781710232000,-500.0,0.00016701,2]
[425348817,1781710232000,-500.0,0.00016701,2]
[425348854,1781710232000,-500.0,0.00016701,2]
[425348861,1781710232000,-500.0,0.00016701,2]
[425348869,1781710232000,-541.97665801,0.00016701,2]
[425348890,1781710232000,-541.97665801,0.00016701,2]
[425348891,1781710232000,-541.97665801,0.00016701,2]
[425348895,1781710232000,-541.97665801,0.00016701,2]
[425348894,1781710232000,-541.97665801,0.00016701,2]
[425348897,1781710232000,-541.97665801,0.00016701,2]
[425348896,1781710232000,-541.97665801,0.00016701,2]
[425348899,1781710232000,-541.97665801,0.00016701,2]
[425348900,1781710232000,-500.0,0.00016701,2]
[425348898,1781710232000,-541.97665801,0.00016701,2]
[425348892,1781710232000,-541.97665801,0.00016701,2]
[425348867,1781710232000,-541.97665801,0.00016701,2]
[425348902,1781710232000,-542.98031849,0.00016701,2]
[425348909,1781710232000,-542.98031849,0.00016701,2]
[425348910,1781710232000,-542.98031849,0.00016701,2]
[425348908,1781710232000,-542.98031849,0.00016701,2]
[425348903,1781710232000,-542.98031849,0.00016701,2]
[425348911,1781710232000,-542.98031849,0.00016701,2]
[425348904,1781710232000,-542.98031849,0.00016701,2]
[425348905,1781710232000,-542.98031849,0.00016701,2]
[425348906,1781710232000,-542.98031849,0.00016701,2]
[425348907,1781710232000,-542.98031849,0.00016701,2]
[425348893,1781710232000,-541.97665801,0.00016701,2]
[425348901,1781710232000,-542.98031849,0.00016701,2]
[425348885,1781710232000,-541.97665801,0.00016701,2]
[425348889,1781710232000,-541.97665801,0.00016701,2]
[425348866,1781710232000,-541.97665801,0.00016701,2]
[425348868,1781710232000,-541.97665801,0.00016701,2]
[425348870,1781710232000,-541.97665801,0.00016701,2]
[425348871,1781710232000,-541.97665801,0.00016701,2]
[425348874,1781710232000,-541.97665801,0.00016701,2]
[425348876,1781710232000,-541.97665801,0.00016701,2]
[425348873,1781710232000,-541.97665801,0.00016701,2]
[425348872,1781710232000,-541.97665801,0.00016701,2]
[425348878,1781710232000,-541.97665801,0.00016701,2]
[425348875,1781710232000,-541.97665801,0.00016701,2]
[425348888,1781710232000,-541.97665801,0.00016701,2]
[425348879,1781710232000,-541.97665801,0.00016701,2]
[425348887,1781710232000,-541.97665801,0.00016701,2]
[425348882,1781710232000,-541.97665801,0.00016701,2]
[425348884,1781710232000,-541.97665801,0.00016701,2]
[425348883,1781710232000,-541.97665801,0.00016701,2]
[425348881,1781710232000,-541.97665801,0.00016701,2]
[425348880,1781710232000,-541.97665801,0.00016701,2]
[425348877,1781710232000,-541.97665801,0.00016701,2]
[425348886,1781710232000,-541.97665801,0.00016701,2]
[425348924,1781710233000,-600.0,0.00016703,2]
[425348935,1781710233000,-309.0,0.00016703,2]
[425348933,1781710233000,-313.0,0.00016703,2]
[425348931,1781710233000,-318.0,0.00016703,2]
[425348932,1781710233000,-320.0,0.00016703,2]
[425348928,1781710233000,-311.0,0.00016703,2]
[425348929,1781710233000,-312.0,0.00016703,2]
[425348926,1781710233000,-312.0,0.00016703,2]
[425348925,1781710233000,-600.0,0.00016703,2]
[425348927,1781710233000,-150.0,0.00016703,2]
[425348921,1781710233000,-1148.64399969,0.00016703,2]
[425348913,1781710233000,-542.98031849,0.00016701,2]
[425348923,1781710233000,-600.0,0.00016703,2]
[425348920,1781710233000,-600.0,0.00016702,2]
[425348914,1781710233000,-542.98031849,0.00016701,2]
[425348918,1781710233000,-542.98031849,0.00016701,2]
[425348919,1781710233000,-199.5,0.00016702,2]
[425348916,1781710233000,-542.98031849,0.00016701,2]
[425348917,1781710233000,-542.98031849,0.00016701,2]
[425348930,1781710233000,-152.0,0.00016703,2]
[425348915,1781710233000,-542.98031849,0.00016701,2]
[425348912,1781710233000,-542.98031849,0.00016701,2]
[425348922,1781710233000,-193.31152324,0.00016703,2]
[425348934,1781710233000,-151.0,0.00016703,2]
[425348951,1781710233000,-152.0,0.00016712,2]
[425348937,1781710233000,-151.0,0.00016703,2]
[425348936,1781710233000,-319.0,0.00016703,2]
[425348960,1781710233000,-151.40129558,0.00016716,2]
[425348959,1781710233000,-500.0,0.00016716,2]
[425348952,1781710233000,-315.0,0.00016713,2]
[425348957,1781710233000,-312.0,0.00016713,2]
[425348955,1781710233000,-150.0,0.00016713,2]
[425348956,1781710233000,-314.0,0.00016713,2]
[425348954,1781710233000,-151.0,0.00016713,2]
[425348947,1781710233000,-160.0,0.00016709,2]
[425348948,1781710233000,-389.1482481,0.0001671,2]
[425348950,1781710233000,-168.75,0.00016712,2]
[425348953,1781710233000,-313.0,0.00016713,2]
[425348958,1781710233000,-153.0,0.00016714,2]
[425348938,1781710233000,-315.0,0.00016703,2]
[425348943,1781710233000,-310.0,0.00016703,2]
[425348949,1781710233000,-160.0,0.00016711,2]
[425348942,1781710233000,-316.0,0.00016703,2]
[425348939,1781710233000,-316.0,0.00016703,2]
[425348941,1781710233000,-312.0,0.00016703,2]
[425348944,1781710233000,-151.0,0.00016703,2]
[425348940,1781710233000,-151.0,0.00016703,2]
[425348945,1781710233000,-310.0,0.00016703,2]
[425348946,1781710233000,-315.0,0.00016703,2]
[425348966,1781710234000,-151.0,0.00016833,2]
[425348962,1781710234000,-315.0,0.00016716,2]
[425348961,1781710234000,-166.59870442,0.00016716,2]
[425348965,1781710234000,-150.0,0.00016741,2]
[425348964,1781710234000,-152.0,0.00016719,2]
[425348967,1781710234000,-150.0,0.00016869,2]
[425348969,1781710234000,-7420.58,0.00016922,2]
[425348963,1781710234000,-312.0,0.00016716,2]
[425348971,1781710234000,-150.0,0.00017036,2]
[425348972,1781710234000,-267.0,0.00017203,2]
[425348975,1781710234000,-627.63914355,0.00017538,2]
[425348970,1781710234000,-500.0,0.0001699,2]
[425348976,1781710234000,-35350.13058842,0.00017923,2]
[425348974,1781710234000,-500.0,0.00017264,2]
[425348968,1781710234000,-9252.66,0.00016922,2]
[425348973,1781710234000,-150.0,0.00017223,2]
[425349025,1781710235000,-300.52,0.00020538,2]
[425349027,1781710235000,-1613.0535,0.00020659,2]
[425349024,1781710235000,-300.52,0.00020404,2]
[425349026,1781710235000,-300.52,0.0002064,2]
[425349012,1781710235000,-500.0,0.0001953,2]
[425349013,1781710235000,-1500.0,0.00019563,2]
[425349015,1781710235000,-288.0,0.0002,2]
[425349014,1781710235000,-175.870187,0.0002,2]
[425349009,1781710235000,-2500.0,0.0001899,2]
[425349010,1781710235000,-151.56971331,0.00019059,7]
[425349007,1781710235000,-151.0,0.00018966,2]
[425349016,1781710235000,-293.0,0.0002,2]
[425349019,1781710235000,-1555.5,0.00020111,2]
[425349017,1781710235000,-151.0,0.0002,2]
[425349018,1781710235000,-198.0,0.0002,2]
[425349021,1781710235000,-251.24,0.000202,2]
[425349022,1781710235000,-214.48459881,0.0002032,2]
[425349023,1781710235000,-201.8,0.00020381,2]
[425349032,1781710235000,-152.39364804,0.00020935,2]
[425349033,1781710235000,-2609.45,0.00020977,2]
[425349029,1781710235000,-300.52,0.00020803,2]
[425349030,1781710235000,-300.52,0.00020871,2]
[425349031,1781710235000,-300.52,0.00020935,2]
[425349034,1781710235000,-300.52,0.00020994,2]
[425349037,1781710235000,-151.0,0.00021,2]
[425349011,1781710235000,-640.48196015,0.00019403,2]
[425349020,1781710235000,-1136.3730627,0.00020115,2]
[425349004,1781710235000,-176.96838882,0.00018963,2]
[425348987,1781710235000,-151.0,0.00018876,2]
[425349005,1781710235000,-176.96838882,0.00018965,2]
[425348979,1781710235000,-4000.0,0.00018372,2]
[425348978,1781710235000,-250.0,0.00018371,2]
[425348977,1781710235000,-500.0,0.0001837,2]
[425348980,1781710235000,-193.0,0.00018372,2]
[425348981,1781710235000,-600.0,0.00018372,2]
[425348991,1781710235000,-151.0,0.00018876,2]
[425348989,1781710235000,-151.0,0.00018876,2]
[425348990,1781710235000,-150.0,0.00018876,2]
[425348982,1781710235000,-250.0,0.00018373,2]
[425348985,1781710235000,-151.0,0.00018876,2]
[425349035,1781710235000,-288.0,0.00021,2]
[425348984,1781710235000,-176.96838882,0.00018783,2]
[425348988,1781710235000,-150.0,0.00018876,2]
[425349008,1781710235000,-150.0,0.00018966,2]
[425348983,1781710235000,-201.8,0.0001841,2]
[425348993,1781710235000,-151.0,0.00018876,2]
[425349002,1781710235000,-151.0,0.00018882,2]
[425348992,1781710235000,-150.0,0.00018876,2]
[425348994,1781710235000,-150.0,0.00018876,2]
[425348995,1781710235000,-151.0,0.00018876,2]
[425348998,1781710235000,-151.0,0.00018876,2]
[425348999,1781710235000,-151.0,0.00018876,2]
[425348997,1781710235000,-151.0,0.00018876,2]
[425349001,1781710235000,-153.0,0.00018877,2]
[425348996,1781710235000,-151.0,0.00018876,2]
[425349000,1781710235000,-150.0,0.00018876,2]
[425349003,1781710235000,-151.0,0.00018898,2]
[425349006,1781710235000,-176.96838881,0.00018965,2]
[425348986,1781710235000,-151.0,0.00018876,2]
[425349036,1781710235000,-293.0,0.00021,2]
[425349028,1781710235000,-300.52,0.00020727,2]
[425349039,1781710235000,-500.0,0.00021014,2]
[425349073,1781710235000,-1633.6,0.00021757,2]
[425349072,1781710235000,-9999.99,0.00021757,2]
[425349075,1781710235000,-9999.99,0.00021757,2]
[425349074,1781710235000,-150.99,0.00021757,2]
[425349071,1781710235000,-2879.94,0.00021757,2]
[425349070,1781710235000,-645.28,0.00021757,2]
[425349076,1781710235000,-299.99,0.00021757,7]
[425349079,1781710235000,-300.52,0.00021757,2]
[425349083,1781710235000,-300.52,0.00021848,2]
[425349082,1781710235000,-2609.45,0.00021841,2]
[425349081,1781710235000,-300.52,0.00021818,2]
[425349085,1781710235000,-195.03052224,0.000219,2]
[425349080,1781710235000,-300.52,0.00021788,2]
[425349068,1781710235000,-300.52,0.00021726,2]
[425349089,1781710235000,-300.52,0.00021934,2]
[425349090,1781710235000,-300.52,0.00021962,2]
[425349084,1781710235000,-300.52,0.00021877,2]
[425349088,1781710235000,-166.0,0.00021918,2]
[425349091,1781710235000,-300.52,0.00021989,2]
[425349086,1781710235000,-319.62524958,0.000219,2]
[425349093,1781710235000,-288.0,0.00022,2]
[425349094,1781710235000,-227.0,0.00022,2]
[425349092,1781710235000,-1363.0,0.00022,10]
[425349098,1781710235000,-300.52,0.00022016,2]
[425349096,1781710235000,-151.0,0.00022,2]
[425349097,1781710235000,-198.0,0.00022,2]
[425349099,1781710235000,-300.52,0.00022043,2]
[425349038,1781710235000,-198.0,0.00021,2]
[425349087,1781710235000,-300.52,0.00021905,2]
[425349069,1781710235000,-443.01151983,0.00021755,2]
[425349095,1781710235000,-293.0,0.00022,2]
[425349066,1781710235000,-300.52,0.00021661,2]
[425349078,1781710235000,-9999.99,0.00021757,2]
[425349041,1781710235000,-300.52,0.00021049,2]
[425349049,1781710235000,-300.52,0.00021288,2]
[425349044,1781710235000,-300.52,0.00021151,2]
[425349043,1781710235000,-1841.09387591,0.00021144,2]
[425349042,1781710235000,-300.52,0.00021101,2]
[425349050,1781710235000,-236.884315,0.0002132,2]
[425349040,1781710235000,-5722.276,0.00021014,2]
[425349052,1781710235000,-213.752762,0.00021322,2]
[425349046,1781710235000,-1672.7364795,0.00021207,2]
[425349045,1781710235000,-300.52,0.00021199,2]
[425349048,1781710235000,-5210.8,0.00021273,2]
[425349047,1781710235000,-300.52,0.00021244,2]
[425349055,1781710235000,-300.52,0.00021371,2]
[425349051,1781710235000,-168.12367,0.00021322,2]
[425349053,1781710235000,-300.52,0.0002133,2]
[425349077,1781710235000,-9999.99,0.00021757,2]
[425349067,1781710235000,-300.52,0.00021694,2]
[425349060,1781710235000,-300.52,0.00021559,2]
[425349054,1781710235000,-2609.45,0.00021335,2]
[425349056,1781710235000,-300.52,0.00021411,2]
[425349062,1781710235000,-195.03052224,0.000216,2]
[425349061,1781710235000,-300.52,0.00021594,2]
[425349059,1781710235000,-300.52,0.00021524,2]
[425349064,1781710235000,-2609.45,0.0002161,2]
[425349065,1781710235000,-300.52,0.00021628,2]
[425349057,1781710235000,-300.52,0.0002145,2]
[425349058,1781710235000,-300.52,0.00021487,2]
[425349063,1781710235000,-319.62524958,0.000216,2]
[425349139,1781710236000,-198.0,0.00023,2]
[425349136,1781710236000,-288.0,0.00023,2]
[425349135,1781710236000,-151.0,0.00022851,2]
[425349141,1781710236000,-500.0,0.00023366,2]
[425349138,1781710236000,-151.0,0.00023,2]
[425349137,1781710236000,-293.0,0.00023,2]
[425349142,1781710236000,-197.38,0.00023367,2]
[425349134,1781710236000,-151.0,0.00022851,2]
[425349133,1781710236000,-151.0,0.00022851,2]
[425349131,1781710236000,-151.0,0.00022851,2]
[425349132,1781710236000,-151.0,0.00022851,2]
[425349140,1781710236000,-166.66,0.00023133,30]
[425349148,1781710236000,-283.09,0.00023367,2]
[425349143,1781710236000,-5000.0,0.00023367,2]
[425349145,1781710236000,-12737.74,0.00023367,2]
[425349146,1781710236000,-165.16,0.00023367,2]
[425349147,1781710236000,-150.0,0.00023367,2]
[425349151,1781710236000,-200.0,0.00023367,2]
[425349152,1781710236000,-2667.11,0.00023367,2]
[425349153,1781710236000,-150.0,0.00023367,2]
[425349149,1781710236000,-290.45,0.00023367,2]
[425349150,1781710236000,-5960.19,0.00023367,2]
[425349154,1781710236000,-168.78,0.00023367,2]
[425349155,1781710236000,-522.01,0.00023367,2]
[425349156,1781710236000,-154.71437321,0.0002337,2]
[425349130,1781710236000,-151.0,0.00022851,2]
[425349144,1781710236000,-200.0,0.00023367,2]
[425349120,1781710236000,-1237.9,0.00022552,2]
[425349109,1781710236000,-300.52,0.00022196,2]
[425349123,1781710236000,-151.0,0.00022851,2]
[425349103,1781710236000,-300.52,0.00022095,2]
[425349104,1781710236000,-195.03052224,0.000221,2]
[425349101,1781710236000,-188.0,0.00022055,2]
[425349100,1781710236000,-2609.45,0.00022045,2]
[425349102,1781710236000,-300.52,0.00022069,2]
[425349105,1781710236000,-319.62524958,0.000221,2]
[425349106,1781710236000,-300.52,0.00022121,2]
[425349158,1781710236000,-1841.09387588,0.00023801,2]
[425349107,1781710236000,-300.52,0.00022146,2]
[425349115,1781710236000,-201.8,0.00022353,2]
[425349110,1781710236000,-166.66,0.00022198,30]
[425349114,1781710236000,-319.62524958,0.000223,2]
[425349108,1781710236000,-300.52,0.00022171,2]
[425349113,1781710236000,-195.03052224,0.000223,2]
[425349117,1781710236000,-1841.09387588,0.00022472,2]
[425349111,1781710236000,-2609.45,0.0002223,2]
[425349116,1781710236000,-2044.97,0.00022466,2]
[425349112,1781710236000,-2609.5,0.00022236,2]
[425349129,1781710236000,-151.0,0.00022851,2]
[425349128,1781710236000,-151.0,0.00022851,2]
[425349118,1781710236000,-402.0,0.00022497,2]
[425349121,1781710236000,-166.66,0.00022666,30]
[425349119,1781710236000,-319.62524958,0.000225,2]
[425349126,1781710236000,-151.0,0.00022851,2]
[425349122,1781710236000,-151.0,0.00022851,2]
[425349125,1781710236000,-151.0,0.00022851,2]
[425349127,1781710236000,-151.0,0.00022851,2]
[425349124,1781710236000,-151.0,0.00022851,2]
[425349165,1781710236000,-166.66,0.00024068,30]
[425349209,1781710236000,-5000.0,0.00027397,30]
[425349161,1781710236000,-293.0,0.00024,2]
[425349190,1781710236000,-201.8,0.00026296,2]
[425349194,1781710236000,-200.0,0.00027,2]
[425349198,1781710236000,-319.73556426,0.00027397,2]
[425349197,1781710236000,-1500.0,0.00027397,2]
[425349199,1781710236000,-5000.0,0.00027397,30]
[425349192,1781710236000,-161.94,0.00026716,2]
[425349195,1781710236000,-3019.53891519,0.00027297,2]
[425349196,1781710236000,-209.89907891,0.00027397,2]
[425349201,1781710236000,-5000.0,0.00027397,30]
[425349212,1781710236000,-500.0,0.000275,7]
[425349204,1781710236000,-5000.0,0.00027397,30]
[425349200,1781710236000,-5000.0,0.00027397,30]
[425349203,1781710236000,-5000.0,0.00027397,30]
[425349202,1781710236000,-5000.0,0.00027397,30]
[425349205,1781710236000,-5000.0,0.00027397,30]
[425349208,1781710236000,-5000.0,0.00027397,30]
[425349210,1781710236000,-5000.0,0.00027397,30]
[425349206,1781710236000,-5000.0,0.00027397,30]
[425349207,1781710236000,-5000.0,0.00027397,30]
[425349217,1781710236000,-3019.53891516,0.00027906,2]
[425349214,1781710236000,-1841.09387588,0.00027786,2]
[425349218,1781710236000,-731.42,0.0002799,2]
[425349215,1781710236000,-219.98,0.00027877,2]
[425349213,1781710236000,-200.0,0.00027759,2]
[425349216,1781710236000,-150.02,0.00027877,7]
[425349219,1781710236000,-175.870187,0.00028,2]
[425349166,1781710236000,-165.16,0.00024146,2]
[425349193,1781710236000,-160.06747441,0.00026989,7]
[425349188,1781710236000,-200.0,0.00026242,2]
[425349211,1781710236000,-159.42874643,0.0002748,2]
[425349189,1781710236000,-522.01,0.00026287,2]
[425349191,1781710236000,-1841.09387588,0.00026458,2]
[425349159,1781710236000,-400.0,0.00023865,2]
[425349162,1781710236000,-151.0,0.00024,2]
[425349164,1781710236000,-161.94,0.00024068,2]
[425349160,1781710236000,-288.0,0.00024,2]
[425349157,1781710236000,-166.66,0.000236,30]
[425349163,1781710236000,-198.0,0.00024,2]
[425349168,1781710236000,-201.8,0.00024324,2]
[425349172,1781710236000,-175.31,0.00024658,2]
[425349169,1781710236000,-166.66,0.00024535,30]
[425349174,1781710236000,-170.78,0.00024946,7]
[425349170,1781710236000,-504.66353416,0.0002462,2]
[425349171,1781710236000,-179.67,0.00024658,2]
[425349173,1781710236000,-165.16,0.00024924,2]
[425349167,1781710236000,-1472.7,0.00024174,2]
[425349184,1781710236000,-200.0,0.00025484,2]
[425349175,1781710236000,-179.67,0.00024946,7]
[425349183,1781710236000,-161.94,0.00025392,2]
[425349185,1781710236000,-165.16,0.00025703,2]
[425349187,1781710236000,-1472.7,0.00025786,2]
[425349181,1781710236000,-176.0,0.00025,2]
[425349179,1781710236000,-155.67889335,0.00025,2]
[425349186,1781710236000,-5210.8,0.00025786,2]
[425349180,1781710236000,-209.0,0.00025,2]
[425349177,1781710236000,-301.0,0.00025,2]
[425349178,1781710236000,-300.90774176,0.00025,2]
[425349176,1781710236000,-175.31,0.00024946,7]
[425349182,1781710236000,-1841.09387588,0.00025129,2]
[425349229,1781710237000,-186.41937009,0.00028268,7]
[425349241,1781710237000,-200.0,0.00028517,2]
[425349234,1781710237000,-1000.0,0.00028315,2]
[425349239,1781710237000,-624.92,0.00028514,30]
[425349242,1781710237000,-152.0,0.00028547,3]
[425349240,1781710237000,-3019.53891516,0.00028515,2]
[425349245,1781710237000,-1065.02,0.0002864,30]
[425349248,1781710237000,-159.71,0.00028642,2]
[425349249,1781710237000,-1000.0,0.00028658,2]
[425349244,1781710237000,-1166.58,0.00028639,30]
[425349251,1781710237000,-155.83,0.00028683,7]
[425349232,1781710237000,-182.93132954,0.00028268,2]
[425349250,1781710237000,-517.02795585,0.00028658,2]
[425349231,1781710237000,-161.82197196,0.00028268,7]
[425349222,1781710237000,-483.74668913,0.00028216,2]
[425349236,1781710237000,-1000.0,0.00028486,2]
[425349228,1781710237000,-320.13494881,0.00028268,7]
[425349230,1781710237000,-187.78154028,0.00028268,7]
[425349226,1781710237000,-174.4786321,0.00028268,7]
[425349238,1781710237000,-158.76,0.00028506,30]
[425349237,1781710237000,-158.78,0.00028504,30]
[425349227,1781710237000,-178.23536394,0.00028268,7]
[425349224,1781710237000,-185.43627508,0.00028268,7]
[425349221,1781710237000,-500.0,0.00028134,60]
[425349220,1781710237000,-161.94,0.0002804,2]
[425349223,1781710237000,-201.8,0.00028267,2]
[425349225,1781710237000,-171.86440865,0.00028268,7]
[425349243,1781710237000,-1000.0,0.00028572,2]
[425349233,1781710237000,-159.3720208,0.00028268,7]
[425349246,1781710237000,-155.83,0.00028641,2]
[425349235,1781710237000,-1000.0,0.00028401,2]
[425349252,1781710237000,-159.71,0.00028684,7]
[425349247,1781710237000,-574.88,0.00028642,30]
[425349279,1781710237000,-50.26389375,0.00028899,7]
[425349277,1781710237000,-500.0,0.00028899,7]
[425349280,1781710237000,-200.0,0.000289,2]
[425349278,1781710237000,-449.73610625,0.00028899,7]
[425349274,1781710237000,-155.83,0.00028894,2]
[425349272,1781710237000,-500.0,0.00028879,7]
[425349270,1781710237000,-624.92,0.00028874,2]
[425349266,1781710237000,-158.78,0.0002883,7]
[425349268,1781710237000,-155.83,0.00028852,30]
[425349275,1781710237000,-159.71,0.00028895,2]
[425349269,1781710237000,-159.71,0.00028853,30]
[425349281,1781710237000,-7.61130625,0.000289,7]
[425349267,1781710237000,-158.76,0.00028832,7]
[425349271,1781710237000,-500.0,0.00028879,7]
[425349276,1781710237000,-500.0,0.00028899,60]
[425349273,1781710237000,-357.49286362,0.00028881,2]
[425349253,1781710237000,-624.92,0.00028694,7]
[425349256,1781710237000,-1000.0,0.00028743,2]
[425349254,1781710237000,-155.83,0.00028725,30]
[425349257,1781710237000,-319.73556426,0.00028766,2]
[425349261,1781710237000,-1065.02,0.00028806,7]
[425349255,1781710237000,-159.71,0.00028726,30]
[425349259,1781710237000,-159.71,0.00028768,2]
[425349260,1781710237000,-1166.58,0.00028805,7]
[425349262,1781710237000,-574.88,0.00028808,7]
[425349264,1781710237000,-155.83,0.0002881,7]
[425349265,1781710237000,-1000.0,0.00028829,2]
[425349258,1781710237000,-155.83,0.00028767,2]
[425349263,1781710237000,-159.71,0.0002881,7]
[425349300,1781710238000,-153.0,0.00028955,30]
[425349293,1781710238000,-159.71,0.00028937,7]
[425349303,1781710238000,-153.0,0.00028955,30]
[425349298,1781710238000,-293.0,0.0002895,30]
[425349302,1781710238000,-155.0,0.00028955,30]
[425349305,1781710238000,-153.0,0.00028955,30]
[425349299,1781710238000,-153.0,0.00028955,30]
[425349294,1781710238000,-156.0,0.0002895,30]
[425349292,1781710238000,-155.83,0.00028936,7]
[425349287,1781710238000,-158.73,0.00028507,30]
[425349296,1781710238000,-151.0,0.0002895,30]
[425349291,1781710238000,-1000.0,0.00028914,2]
[425349290,1781710238000,-200.0,0.000289,2]
[425349289,1781710238000,-152.38869375,0.000289,7]
[425349288,1781710238000,-158.73,0.00028832,7]
[425349285,1781710238000,-964.64748612,0.00027397,10]
[425349286,1781710238000,-6874.22251388,0.00027397,10]
[425349301,1781710238000,-158.0,0.00028955,30]
[425349297,1781710238000,-288.0,0.0002895,30]
[425349308,1781710238000,-844.65679237,0.00028971,2]
[425349295,1781710238000,-152.0,0.0002895,30]
[425349306,1781710238000,-198.0,0.00028955,30]
[425349321,1781710238000,-500.0,0.00028979,2]